bitfinex-derivatives/quotes_BTCF0:USTF0_20240829
["timestamp","ask_amount","ask_price","bid_price","bid_amount"]
[1724946815761,0.082158,60837.0,60836.0,0.17102403]
[1724946816162,0.082158,60837.0,60836.0,0.02618403]
[1724946816368,0.082162,60834.0,60831.0,0.14484]
[1724946816567,0.28,60839.0,60831.0,0.14484]
[1724946816763,0.082154,60840.0,60835.0,0.3608]
[1724946817067,0.3608,60844.0,60835.0,0.3608]
[1724946817068,0.082148,60844.0,60838.0,0.082155]
[1724946817369,0.082148,60844.0,60843.0,0.3608]
[1724946817870,3.73024637,60845.0,60844.0,0.082148]
[1724946818080,0.10870413,60855.0,60847.0,0.082143]
[1724946818278,0.02656913,60855.0,60851.0,0.3608]
[1724946818575,3.73,60852.0,60851.0,0.3608]
[1724946818973,3.73,60852.0,60848.0,0.14484]
[1724946819166,0.08214,60850.0,60848.0,0.14484]
[1724946819474,0.082141,60849.0,60848.0,0.14484]
[1724946820065,0.082145,60846.0,60845.0,0.00024658]
[1724946820261,0.362145,60846.0,60845.0,0.00024658]
[1724946821276,0.40236047,60846.0,60845.0,0.00024658]
[1724946823076,0.41636047,60846.0,60845.0,0.00024658]
[1724946824677,0.05421547,60846.0,60845.0,0.08239358]
[1724946824867,0.05421547,60846.0,60845.0,0.00024658]
[1724946824868,0.13636047,60846.0,60845.0,0.00024658]
[1724946825267,0.21850547,60846.0,60845.0,0.00024658]
[1724946826267,0.05421547,60846.0,60845.0,0.00024658]
[1724946826674,0.13636047,60846.0,60845.0,0.00024658]
[1724946827571,0.41636047,60846.0,60845.0,0.00024658]
[1724946827772,0.49850547,60846.0,60845.0,0.00024658]
[1724946827962,0.63106163,60846.0,60845.0,0.00024658]
[1724946828167,0.082155,60839.0,60838.0,0.3608]
[1724946828364,0.40237047,60839.0,60838.0,0.38764779]
[1724946828575,0.48452547,60839.0,60838.0,0.38764779]
[1724946828764,4.21452547,60839.0,60838.0,0.38764779]
[1724946828965,4.2649385,60839.0,60838.0,0.3608]
[1724946829665,4.21452547,60839.0,60838.0,0.3608]
[1724946829870,4.27393863,60839.0,60838.0,0.3608]
[1724946830074,4.22352547,60839.0,60838.0,0.3608]
[1724946830274,0.082166,60831.0,60830.0,0.25744]
[1724946830772,0.082166,60831.0,60830.0,0.28469956]
[1724946830969,0.12238878,60831.0,60830.0,0.28469956]
[1724946831583,0.082166,60831.0,60830.0,0.28469956]
[1724946831880,0.082159,60836.0,60830.0,0.28469956]
[1724946832089,0.04022221,60835.0,60834.0,0.3608]
[1724946832382,0.04022015,60835.0,60834.0,0.3608]
[1724946832869,3.741,60839.0,60834.0,0.3608]
[1724946833178,0.08216,60835.0,60834.0,0.3608]
[1724946833682,0.12238021,60835.0,60834.0,0.3608]
[1724946834075,0.20454021,60835.0,60834.0,0.3608]
[1724946834481,0.16432,60835.0,60834.0,0.3608]
[1724946834674,0.20454214,60835.0,60834.0,0.3608]
[1724946835179,0.164332,60831.0,60830.0,0.02725956]
[1724946835388,0.164334,60830.0,60829.0,0.3608]
[1724946835585,0.082178,60822.0,60821.0,0.1157]
[1724946835782,0.362178,60822.0,60821.0,0.1157]
[1724946835977,0.40240916,60822.0,60821.0,0.1157]
[1724946836172,0.00024658,60828.0,60821.0,0.1157]
[1724946836173,0.082176,60824.0,60821.0,0.1157]
[1724946836379,0.082176,60824.0,60821.0,0.14196804]
[1724946836582,0.00024658,60828.0,60821.0,0.14196804]
[1724946836583,0.08241758,60828.0,60821.0,0.14196804]
[1724946836871,0.00024658,60828.0,60821.0,0.14196804]
[1724946837071,0.001,60822.0,60821.0,0.14496804]
[1724946837285,0.001,60822.0,60821.0,0.22714704]
[1724946838781,0.00124658,60828.0,60821.0,0.63820804]
[1724946838974,0.00124658,60828.0,60827.0,0.3608]
[1724946839480,0.00024658,60828.0,60827.0,0.3608]
[1724946839690,0.08241658,60828.0,60827.0,0.3608]
[1724946840187,0.08652643,60828.0,60827.0,0.3608]
[1724946840488,0.94189643,60828.0,60827.0,0.3618]
[1724946841187,4.67189643,60828.0,60827.0,0.3618]
[1724946841582,4.77769643,60828.0,60827.0,0.3618]
[1724946841779,4.85986643,60828.0,60827.0,0.3618]
[1724946841981,5.21335643,60828.0,60821.0,0.02626804]
[1724946842279,5.21335643,60828.0,60787.0,0.08156712]
[1724946842280,0.164358,60821.0,60812.0,0.0038]
[1724946842474,0.04022928,60820.0,60809.0,0.3608]
[1724946842676,0.7216,60822.0,60814.0,0.082188]
[1724946842880,0.7216,60822.0,60815.0,0.1119]
[1724946843084,0.7216,60822.0,60816.0,0.1046]
[1724946843279,0.082187,60815.0,60809.0,0.3608]
[1724946843480,1.0016,60822.0,60810.0,0.2165]
[1724946843699,0.082185,60817.0,60810.0,0.298693]
[1724946843884,0.08218,60821.0,60811.0,0.082192]
[1724946844085,1.0016,60822.0,60811.0,0.082192]
[1724946844285,0.082182,60819.0,60811.0,0.082192]
[1724946844486,0.082185,60817.0,60810.0,0.2165]
[1724946844683,0.082185,60817.0,60810.0,0.298694]
[1724946845690,0.082186,60816.0,60810.0,0.298694]
[1724946845886,0.082189,60814.0,60810.0,0.2165]
[1724946846088,1.0066,60822.0,60810.0,0.2165]
[1724946846287,0.082192,60812.0,60811.0,0.14488]
[1724946846491,0.082193,60811.0,60810.0,0.1046]
[1724946846685,0.082193,60811.0,60810.0,0.24948]
[1724946847192,0.442993,60811.0,60810.0,0.24948]
[1724946847583,0.525186,60811.0,60810.0,0.1046]
[1724946847786,0.525186,60811.0,60809.0,0.14488]
[1724946847787,0.164388,60810.0,60809.0,0.14488]
[1724946847991,0.444388,60810.0,60809.0,0.14488]
[1724946848287,0.444388,60810.0,60806.0,0.02696136]
[1724946848288,0.164396,60807.0,60806.0,0.02696136]
[1724946848496,0.164402,60805.0,60804.0,0.14488]
[1724946849287,0.082206,60801.0,60800.0,0.25064818]
[1724946849598,0.082206,60801.0,60800.0,0.39556818]
[1724946850790,0.002,60807.0,60800.0,0.39556818]
[1724946850999,0.082205,60802.0,60800.0,0.39556818]
[1724946851183,0.164412,60801.0,60800.0,0.39556818]
[1724946851388,0.082206,60801.0,60800.0,0.39556818]
[1724946852696,0.083206,60801.0,60800.0,0.39556818]
[1724946853192,0.083206,60801.0,60800.0,0.28246818]
[1724946853594,0.001,60801.0,60800.0,0.28246818]
[1724946853795,0.083206,60801.0,60800.0,0.28246818]
[1724946854200,0.083206,60801.0,60800.0,0.13754818]
[1724946854390,0.083206,60801.0,60800.0,0.17186818]
[1724946854595,0.165412,60801.0,60800.0,0.02694818]
[1724946854903,0.806212,60801.0,60800.0,0.14492]
[1724946856497,0.888418,60801.0,60800.0,0.14492]
[1724946857196,0.806212,60801.0,60800.0,0.14492]
[1724946857803,4.536212,60801.0,60800.0,0.14492]
[1724946859600,4.618418,60801.0,60800.0,0.14492]
[1724946859797,0.08222,60791.0,60780.0,0.3608]
[1724946860108,0.082225,60787.0,60780.0,0.4692]
[1724946860298,0.082225,60787.0,60780.0,0.47072]
[1724946860500,0.082225,60787.0,60782.0,0.00819324]
[1724946861310,0.082225,60787.0,60780.0,0.00152]
[1724946861311,0.164466,60781.0,60780.0,0.00152]
[1724946861514,0.164466,60781.0,60769.0,0.3608]
[1724946861515,4.092233,60781.0,60769.0,0.3608]
[1724946861811,4.01,60781.0,60773.0,0.082243]
[1724946862009,0.082236,60780.0,60773.0,0.09059331]
[1724946862304,3.73108678,60781.0,60774.0,0.082242]
[1724946862510,3.73108678,60781.0,60776.0,0.3608]
[1724946862511,3.73024678,60781.0,60776.0,0.3608]
[1724946862709,3.73024678,60781.0,60777.0,0.1137]
[1724946862901,3.73124678,60781.0,60780.0,0.082235]
[1724946863231,3.73124678,60781.0,60780.0,0.00818501]
[1724946863232,0.00124678,60781.0,60780.0,0.00818501]
[1724946863512,0.00124678,60781.0,60777.0,0.1156]
[1724946863714,0.08224,60776.0,60775.0,0.00842761]
[1724946864014,0.082242,60775.0,60770.0,0.1137]
[1724946864198,0.082236,60779.0,60772.0,0.3608]
[1724946864400,3.73,60778.0,60772.0,0.3608]
[1724946865506,3.812238,60778.0,60772.0,0.3608]
[1724946865695,3.73,60778.0,60772.0,0.3608]
[1724946865900,0.082242,60775.0,60772.0,0.3608]
[1724946866207,3.73584,60778.0,60772.0,0.3608]
[1724946866509,0.082244,60773.0,60772.0,0.3608]
[1724946867602,0.3608,60774.0,60770.0,0.02616842]
[1724946867908,0.3608,60774.0,60764.0,0.1078]
[1724946868108,0.082252,60767.0,60764.0,0.1078]
[1724946868301,0.082244,60773.0,60764.0,0.1078]
[1724946868500,0.082256,60765.0,60763.0,0.0001972]
[1724946868705,0.3608,60768.0,60763.0,0.0001972]
[1724946868706,0.082256,60764.0,60763.0,0.0001972]
[1724946869116,0.443052,60768.0,60763.0,0.02724287]
[1724946869302,0.3608,60774.0,60767.0,0.3608]
[1724946869498,0.3608,60774.0,60762.0,0.79584199]
[1724946869499,0.3608,60774.0,60768.0,0.14496]
[1724946869902,3.73,60773.0,60768.0,0.14496]
[1724946870203,0.082249,60769.0,60768.0,0.14496]
[1724946870515,0.28,60772.0,60762.0,0.53311347]
[1724946870812,0.082257,60764.0,60762.0,0.53311347]
[1724946871317,3.73088,60768.0,60762.0,0.53311347]
[1724946871318,0.082258,60763.0,60762.0,0.53311347]
[1724946872210,0.001,60764.0,60762.0,0.53311347]
[1724946872405,0.083257,60764.0,60762.0,0.53311347]
[1724946872598,0.082258,60763.0,60762.0,0.53311347]
[1724946872799,0.082258,60763.0,60762.0,0.38815347]
[1724946873213,0.525316,60763.0,60762.0,0.02735347]
[1724946873402,0.082271,60754.0,60752.0,0.145]
[1724946873607,0.443071,60753.0,60752.0,0.02720091]
[1724946873909,0.3608,60753.0,60750.0,0.082275]
[1724946874110,0.001,60763.0,60752.0,0.082273]
[1724946874327,0.001,60763.0,60761.0,0.3608]
[1724946874504,0.001,60763.0,60762.0,0.227259]
[1724946874903,3.7338,60775.0,60763.0,0.49372]
[1724946875115,3.73,60775.0,60773.0,0.3608]
[1724946875301,3.73,60775.0,60766.0,0.082252]
[1724946875505,3.812241,60775.0,60774.0,0.145]
[1724946875703,3.812241,60775.0,60767.0,0.187152]
[1724946875704,3.73,60775.0,60769.0,0.3608]
[1724946875910,3.73,60775.0,60769.0,0.443049]
[1724946876114,3.73,60775.0,60770.0,0.145]
[1724946876627,3.73,60775.0,60771.0,0.082247]
[1724946876820,3.73,60775.0,60774.0,0.082243]
[1724946877119,0.3608,60777.0,60774.0,0.082243]
[1724946877311,0.3608,60777.0,60775.0,0.1126]
[1724946877504,3.73,60776.0,60775.0,0.1126]
[1724946878606,3.73,60776.0,60772.0,0.082245]
[1724946878809,3.73,60776.0,60773.0,0.145]
[1724946879221,3.742,60776.0,60773.0,0.145]
[1724946879421,0.3608,60775.0,60770.0,0.02684541]
[1724946879617,0.3608,60775.0,60767.0,0.1049]
[1724946879918,0.082245,60772.0,60768.0,0.145]
[1724946880124,0.082245,60772.0,60767.0,0.13195152]
[1724946880305,0.3608,60775.0,60767.0,0.13195152]
[1724946880511,0.08225,60769.0,60767.0,0.13195152]
[1724946880710,0.082251,60768.0,60767.0,0.02705152]
[1724946880921,0.082252,60767.0,60763.0,0.145]
[1724946881618,0.082252,60767.0,60766.0,0.02687002]
[1724946881819,0.082252,60767.0,60766.0,0.00024678]
[1724946882020,0.164504,60767.0,60766.0,0.00024678]
[1724946882423,0.166504,60767.0,60766.0,0.00024678]
[1724946882621,1.260184,60767.0,60766.0,0.00024678]
[1724946883320,0.084252,60767.0,60766.0,0.00024678]
[1724946883521,3.814252,60767.0,60766.0,0.00024678]
[1724946885430,4.307932,60767.0,60766.0,0.00024678]
[1724946885615,3.814252,60767.0,60766.0,0.00024678]
[1724946886326,0.164516,60763.0,60762.0,0.36232]
[1724946886521,0.164516,60763.0,60748.0,0.082278]
[1724946886522,0.082254,60766.0,60755.0,0.1464]
[1724946886728,0.082254,60766.0,60755.0,0.589468]
[1724946886929,4.0938,60767.0,60761.0,0.3608]
[1724946887124,4.0928,60767.0,60762.0,0.3371]
[1724946887319,4.173052,60767.0,60762.0,0.3371]
[1724946888315,3.73,60767.0,60766.0,0.3608]
[1724946888521,3.73,60767.0,60766.0,0.443054]
[1724946889128,0.00024678,60771.0,60770.0,0.082248]
[1724946889524,3.7338,60782.0,60773.0,0.082243]
[1724946889724,3.73,60782.0,60776.0,0.3608]
[1724946889936,3.73,60782.0,60777.0,0.1111]
[1724946890229,3.73,60782.0,60781.0,0.3608]
[1724946890438,0.3646,60794.0,60788.0,0.082223]
[1724946890628,0.3608,60794.0,60789.0,0.109]
[1724946891126,3.73,60793.0,60789.0,0.109]
[1724946891328,3.73,60793.0,60789.0,0.4698]
[1724946891923,3.73,60793.0,60790.0,0.08222]
[1724946892128,3.73,60793.0,60792.0,0.082218]
[1724946892335,0.014,60794.0,60793.0,0.082217]
[1724946892536,0.014,60794.0,60791.0,0.1464]
[1724946892537,0.3608,60806.0,60791.0,0.4264]
[1724946892734,0.0038,60810.0,60802.0,0.082205]
[1724946892940,0.3257,60816.0,60806.0,0.3608]
[1724946893242,0.082187,60815.0,60806.0,0.3608]
[1724946893537,0.082189,60814.0,60806.0,0.3608]
[1724946894433,0.082186,60816.0,60806.0,0.3608]
[1724946894638,0.36104678,60817.0,60806.0,0.3608]
[1724946894639,0.00024678,60817.0,60811.0,0.3608]
[1724946894930,0.00024678,60817.0,60812.0,0.14636]
[1724946894931,0.003,60814.0,60812.0,0.14636]
[1724946895524,0.00024678,60817.0,60812.0,0.14636]
[1724946895720,0.001,60816.0,60812.0,0.14636]
[1724946896328,0.001,60816.0,60812.0,0.228551]
[1724946896931,0.001,60816.0,60813.0,0.08219]
[1724946897137,0.00024678,60817.0,60815.0,0.082187]
[1724946897323,0.0038,60827.0,60816.0,0.3608]
[1724946897530,0.3608,60830.0,60824.0,0.3608]
[1724946897734,0.082168,60829.0,60824.0,0.3608]
[1724946898335,0.3608,60830.0,60824.0,0.3608]
[1724946898737,0.00024678,60833.0,60825.0,0.14636]
[1724946899037,0.01,60829.0,60825.0,0.14636]
[1724946899431,0.082172,60827.0,60825.0,0.14636]
[1724946899629,0.01,60829.0,60826.0,0.14636]
[1724946900329,0.01,60829.0,60824.0,0.38824458]
[1724946900533,0.3718,60830.0,60827.0,0.14632]
[1724946900828,0.3718,60830.0,60824.0,0.38824458]
[1724946901033,0.3718,60830.0,60828.0,0.14632]
[1724946901234,0.082169,60829.0,60828.0,0.14632]
[1724946902732,0.3608,60830.0,60828.0,0.14732]
[1724946903237,0.00024678,60833.0,60832.0,0.082164]
[1724946903439,0.00024678,60833.0,60832.0,0.442964]
[1724946904239,0.00024678,60833.0,60832.0,0.936124]
[1724946905040,0.00024678,60833.0,60828.0,0.001]
[1724946905244,0.00024678,60833.0,60824.0,0.50968458]
[1724946905245,0.00024678,60833.0,60824.0,0.48324]
[1724946905443,0.009,60829.0,60828.0,0.001]
[1724946905736,0.173336,60829.0,60828.0,0.001]
[1724946905927,0.616304,60829.0,60828.0,0.001]
[1724946906129,0.081179,60821.0,60820.0,0.00024678]
[1724946906333,3.73,60821.0,60820.0,0.02753088]
[1724946906533,3.73,60821.0,60820.0,0.00024678]
[1724946907134,0.082171,60827.0,60820.0,0.08242778]
[1724946907532,0.082173,60826.0,60820.0,0.00024678]
[1724946907930,0.3698,60829.0,60823.0,0.3608]
[1724946908247,3.73,60824.0,60823.0,0.3608]
[1724946909041,3.73,60824.0,60823.0,0.442976]
[1724946909234,3.73,60824.0,60823.0,1.45404]
[1724946909435,3.73,60824.0,60823.0,0.3608]
[1724946910647,3.822175,60824.0,60823.0,0.3618]
[1724946911846,3.90435,60824.0,60823.0,0.001]
[1724946912232,0.164358,60821.0,60820.0,0.00024678]
[1724946912434,0.163358,60821.0,60820.0,0.00024678]
[1724946913246,0.162358,60821.0,60820.0,0.00024678]
[1724946913439,0.082195,60809.0,60808.0,0.0038]
[1724946913633,0.082199,60806.0,60805.0,0.16452]
[1724946914046,0.082199,60806.0,60805.0,0.19158313]
[1724946914839,0.164398,60806.0,60805.0,0.16452]
[1724946915140,4.254198,60806.0,60805.0,0.15002644]
[1724946915339,4.254198,60806.0,60805.0,0.05332944]
[1724946915340,5.429757,60806.0,60805.0,0.05332944]
[1724946915543,5.429757,60806.0,60799.0,0.00024658]
[1724946915544,0.246624,60800.0,60799.0,0.00024658]
[1724946915749,0.936448,60800.0,60799.0,0.00024658]
[1724946916045,1.617656,60800.0,60799.0,0.00024658]
[1724946916943,1.548448,60800.0,60799.0,0.00124658]
[1724946917148,0.455008,60800.0,60799.0,0.00124658]
[1724946918136,1.548448,60800.0,60799.0,0.00124658]
[1724946918337,0.442008,60800.0,60799.0,0.00124658]
[1724946918539,0.456008,60800.0,60799.0,0.00124658]
[1724946919248,1.631656,60800.0,60799.0,0.00124658]
[1724946919435,1.549448,60800.0,60799.0,0.00124658]
[1724946919639,1.631656,60800.0,60799.0,0.00124658]
[1724946919946,1.617656,60800.0,60799.0,0.00024658]
[1724946920135,1.631656,60800.0,60799.0,0.00124658]
[1724946920748,1.65805915,60800.0,60799.0,0.00124658]
[1724946920942,1.74026715,60800.0,60799.0,5.8e-07]
[1724946921245,1.74026715,60800.0,60787.0,0.0038]
[1724946921246,0.164448,60788.0,60787.0,0.0038]
[1724946921553,4.0908,60788.0,60777.0,0.082238]
[1724946921743,0.082226,60787.0,60776.0,0.08224]
[1724946922045,4.0898,60788.0,60775.0,0.22067397]
[1724946922046,4.09088678,60788.0,60775.0,0.22067397]
[1724946922250,4.09004678,60788.0,60775.0,0.10967397]
[1724946922450,0.08124,60777.0,60776.0,0.08224]
[1724946922640,0.082233,60781.0,60775.0,0.02743397]
[1724946922840,0.082235,60780.0,60775.0,0.10967497]
[1724946923335,4.09604678,60788.0,60775.0,0.02843397]
[1724946923539,4.09604678,60788.0,60780.0,0.3608]
[1724946923738,0.00624678,60788.0,60787.0,0.082225]
[1724946923953,0.3608,60799.0,60789.0,0.082221]
[1724946924248,0.5434,60805.0,60797.0,0.3608]
[1724946924435,0.3608,60808.0,60797.0,0.3608]
[1724946924639,0.082202,60804.0,60797.0,0.3608]
[1724946925044,0.082204,60803.0,60797.0,0.3608]
[1724946925441,0.082206,60802.0,60797.0,0.3608]
[1724946925643,0.082204,60803.0,60797.0,0.3608]
[1724946925849,0.08221,60798.0,60797.0,0.3608]
[1724946926053,0.082208,60800.0,60797.0,0.3608]
[1724946926239,0.082208,60800.0,60797.0,0.3618]
[1724946926847,0.012,60803.0,60797.0,0.3618]
[1724946927052,0.082205,60803.0,60797.0,0.3618]
[1724946927352,0.013,60798.0,60797.0,0.3618]
[1724946927654,0.013,60798.0,60797.0,0.444012]
[1724946927950,0.013,60798.0,60797.0,0.3618]
[1724946928147,0.013,60798.0,60797.0,0.444012]
[1724946928650,0.012,60803.0,60797.0,1.45524]
[1724946928960,0.012,60803.0,60802.0,0.443005]
[1724946930146,3.73108678,60807.0,60802.0,0.443005]
[1724946930352,3.73024678,60807.0,60803.0,0.1143]
[1724946930848,3.73024678,60807.0,60803.0,0.2331]
[1724946931247,3.81244478,60807.0,60803.0,0.2331]
[1724946931964,3.73024678,60807.0,60803.0,0.2331]
[1724946932542,3.73024678,60807.0,60803.0,0.26042668]
[1724946932755,3.73324678,60807.0,60803.0,0.26042668]
[1724946933141,3.73324678,60807.0,60803.0,0.34262868]
[1724946933545,3.73324678,60807.0,60803.0,0.26042668]
[1724946934759,3.73324678,60807.0,60803.0,0.34262868]
[1724946936157,3.73424678,60807.0,60804.0,0.082202]
[1724946936354,3.73424678,60807.0,60803.0,0.26042668]
[1724946936554,0.0038,60819.0,60806.0,0.082199]
[1724946936854,0.0038,60824.0,60818.0,0.7216]
[1724946937055,0.3257,60828.0,60823.0,0.3608]
[1724946937260,0.16435,60824.0,60823.0,0.3608]
[1724946937448,0.164362,60820.0,60819.0,0.1166]
[1724946937652,0.164362,60820.0,60818.0,0.36232]
[1724946937653,0.164364,60819.0,60818.0,0.36232]
[1724946937848,0.164364,60819.0,60818.0,0.3608]
[1724946938462,0.164378,60814.0,60813.0,0.00024678]
[1724946938962,0.163378,60814.0,60813.0,0.00024678]
[1724946939755,3.893378,60814.0,60813.0,0.00024678]
[1724946939954,3.900378,60814.0,60813.0,0.00124678]
[1724946941251,0.082201,60805.0,60804.0,0.11]
[1724946941452,0.082199,60807.0,60804.0,0.02670641]
[1724946941760,0.081199,60807.0,60800.0,0.3608]
[1724946942558,0.082205,60802.0,60800.0,0.443008]
[1724946942766,0.004,60805.0,60801.0,0.199506]
[1724946943064,0.004,60805.0,60801.0,0.1173]
[1724946943263,0.0822,60806.0,60801.0,0.1183]
[1724946943763,0.009,60807.0,60803.0,0.082203]
[1724946944159,0.009,60807.0,60801.0,0.14570356]
[1724946944463,0.0822,60806.0,60801.0,0.14570356]
[1724946945058,0.009,60807.0,60801.0,0.14570356]
[1724946945259,0.082205,60802.0,60801.0,0.02840356]
[1724946945567,0.082203,60804.0,60801.0,0.02840356]
[1724946945767,0.082204,60803.0,60801.0,0.02840356]
[1724946946261,0.082205,60802.0,60801.0,0.02840356]
[1724946946857,0.009,60807.0,60801.0,1.48180356]
[1724946947059,0.00024678,60810.0,60809.0,0.082195]
[1724946947555,0.00024678,60810.0,60809.0,1.175555]
[1724946947761,0.00024678,60810.0,60809.0,1.292555]
[1724946947973,0.0038,60823.0,60809.0,1.21036]
[1724946948167,0.0038,60829.0,60822.0,0.442978]
[1724946948472,0.082168,60830.0,60823.0,0.2339]
[1724946948971,0.5396,60832.0,60823.0,0.2339]
[1724946948972,0.082169,60829.0,60823.0,0.2339]
[1724946949263,0.442971,60827.0,60823.0,0.2339]
[1724946949662,0.3297,60826.0,60823.0,0.2349]
[1724946950061,0.3297,60826.0,60823.0,0.26149232]
[1724946950671,0.004,60826.0,60823.0,0.26149232]
[1724946951373,0.004,60826.0,60823.0,0.02759232]
[1724946952271,0.001,60826.0,60823.0,0.02759232]
[1724946952572,0.082175,60824.0,60823.0,0.02759232]
[1724946953066,0.082175,60824.0,60823.0,0.001]
[1724946954467,0.081176,60823.0,60822.0,0.3608]
[1724946955776,0.081176,60823.0,60818.0,0.00024678]
[1724946956078,0.082182,60819.0,60818.0,0.00024678]
[1724946956978,0.082182,60819.0,60818.0,0.08242978]
[1724946957373,0.082173,60826.0,60822.0,0.001]
[1724946957569,0.082176,60823.0,60822.0,0.001]
[1724946958079,3.822176,60823.0,60822.0,0.001]
[1724946958382,3.822176,60823.0,60822.0,0.082178]
[1724946958765,3.822176,60823.0,60821.0,0.3608]
[1724946958766,0.082168,60829.0,60821.0,0.3608]
[1724946959084,0.082168,60829.0,60827.0,0.3608]
[1724946959381,0.082168,60829.0,60826.0,0.082172]
[1724946959382,3.822168,60829.0,60826.0,0.082172]
[1724946959577,0.082168,60829.0,60826.0,0.082172]
[1724946959884,0.08217,60828.0,60825.0,0.00809412]
[1724946960069,0.08217,60828.0,60824.0,0.082174]
[1724946960274,0.082168,60829.0,60825.0,0.09047031]
[1724946960472,0.082168,60829.0,60825.0,0.082174]
[1724946960674,0.082168,60829.0,60827.0,0.3608]
[1724946960880,0.085168,60829.0,60827.0,0.3608]
[1724946961383,0.003,60829.0,60827.0,0.44297]
[1724946961586,0.003,60829.0,60827.0,0.08217]
[1724946961983,0.003,60829.0,60828.0,0.08217]
[1724946963183,0.003,60829.0,60826.0,0.00837034]
[1724946963380,0.082171,60827.0,60826.0,0.00837034]
[1724946964076,0.082171,60827.0,60825.0,0.083174]
[1724946964077,0.164344,60826.0,60825.0,0.001]
[1724946964680,0.20457237,60826.0,60825.0,0.001]
[1724946964882,0.081176,60823.0,60822.0,0.02726632]
[1724946965086,0.082172,60826.0,60820.0,0.08218]
[1724946965579,0.442972,60827.0,60825.0,0.082173]
[1724946965782,0.002,60826.0,60825.0,0.083173]
[1724946965981,0.084172,60826.0,60825.0,0.083173]
[1724946966279,0.084172,60826.0,60825.0,0.001]
[1724946966481,0.085172,60826.0,60824.0,0.0083613]
[1724946966680,0.003,60826.0,60820.0,0.08318]
[1724946967084,0.082179,60821.0,60820.0,0.001]
[1724946968080,0.003,60826.0,60819.0,0.38696474]
[1724946968081,0.082181,60820.0,60819.0,0.38696474]
[1724946968279,0.081181,60820.0,60819.0,0.38696474]
[1724946969180,0.080181,60820.0,60819.0,0.38696474]
[1724946970490,0.003,60821.0,60819.0,0.38696474]
[1724946970790,0.003,60821.0,60820.0,0.082181]
[1724946971583,0.442971,60827.0,60821.0,0.082179]
[1724946971779,0.005,60820.0,60819.0,0.47014674]
[1724946972584,0.081181,60820.0,60819.0,0.38696474]
[1724946975797,0.088181,60820.0,60819.0,0.38796474]
[1724946976985,0.170362,60820.0,60819.0,0.02716474]
[1724946977187,0.613343,60820.0,60819.0,0.02716474]
[1724946977394,0.621821,60820.0,60819.0,0.001]
[1724946977593,0.65357452,60820.0,60819.0,0.001]
[1724946977787,0.76747452,60820.0,60819.0,0.001]
[1724946977986,4.50747452,60820.0,60819.0,0.001]
[1724946979490,4.5337214,60820.0,60819.0,0.001]
[1724946979893,4.93860872,60820.0,60793.0,0.00836581]
[1724946980083,4.93860872,60820.0,60802.0,0.0038]
[1724946980084,0.082204,60803.0,60802.0,0.0038]
[1724946980286,0.082205,60802.0,60801.0,0.3608]
[1724946980482,0.722992,60812.0,60804.0,0.082202]
[1724946980682,0.082199,60806.0,60804.0,0.082202]
[1724946980886,0.04024018,60805.0,60804.0,0.082202]
[1724946981285,0.082199,60806.0,60804.0,0.082202]
[1724946981483,3.74,60805.0,60802.0,0.1144]
[1724946982098,0.082199,60806.0,60802.0,0.1144]
[1724946982988,0.004,60805.0,60802.0,0.1144]
[1724946983294,0.082204,60803.0,60802.0,0.1144]
[1724946985800,0.088204,60803.0,60802.0,0.1154]
[1724946986412,0.091204,60803.0,60802.0,0.1154]
[1724946987093,0.091204,60803.0,60802.0,0.001]
[1724946987599,1.027608,60803.0,60802.0,0.001]
[1724946987897,4.89005935,60803.0,60802.0,0.001]
[1724946988287,4.39665935,60803.0,60802.0,0.001]
[1724946989298,4.38293148,60803.0,60802.0,0.001]
[1724946989595,4.42317939,60803.0,60802.0,0.001]
[1724946989800,4.42317946,60803.0,60802.0,0.001]
[1724946989993,4.42317944,60803.0,60802.0,0.001]
[1724946990394,4.42317944,60803.0,60802.0,0.083205]
[1724946990395,4.192004,60803.0,60802.0,0.083205]
[1724946990599,3.831204,60803.0,60802.0,0.083205]
[1724946991410,4.192004,60803.0,60802.0,0.001]
[1724946991587,4.274208,60803.0,60802.0,0.001]
[1724946991792,4.89005845,60803.0,60802.0,0.001]
[1724946992001,5.49005845,60803.0,60802.0,0.001]
[1724946992699,5.40785445,60803.0,60802.0,0.001]
[1724946993002,4.80785445,60803.0,60802.0,0.001]
[1724946993196,5.40785445,60803.0,60802.0,0.001]
[1724946993403,5.449812,60803.0,60802.0,0.001]
[1724946993797,5.40785504,60803.0,60802.0,0.001]
[1724946994112,5.449812,60803.0,60802.0,0.001]
[1724946994304,0.246624,60800.0,60799.0,0.00024678]
[1724946994604,0.887424,60800.0,60799.0,0.00024678]
[1724946994790,1.33890804,60800.0,60799.0,0.00024678]
[1724946995099,1.298656,60800.0,60799.0,0.00024678]
[1724946995308,1.980864,60800.0,60799.0,0.00024678]
[1724946995791,2.02111536,60800.0,60799.0,0.00024678]
[1724946996189,1.985864,60800.0,60799.0,0.00024678]
[1724946996407,2.01318411,60800.0,60799.0,0.00024678]
[1724946997399,0.16445,60787.0,60786.0,0.0038]
[1724946997593,0.164486,60774.0,60773.0,0.01211526]
[1724946997801,0.082244,60773.0,60772.0,0.00152]
[1724946998001,0.082251,60768.0,60766.0,0.420852]
[1724946998206,0.082251,60768.0,60767.0,0.09045872]
[1724946998708,0.073251,60768.0,60767.0,0.09045872]
[1724946999501,0.079253,60767.0,60764.0,0.443056]
[1724946999708,0.079253,60767.0,60764.0,0.444616]
[1724946999899,0.079253,60767.0,60765.0,0.00850521]
[1724947000099,0.00024678,60774.0,60766.0,0.49368]
[1724947000298,0.00024678,60774.0,60773.0,0.082244]
[1724947000711,0.00024678,60774.0,60773.0,1.175884]